[Event "Live Chess"]
[Site "Chess.com"]
[Date "2023.05.21"]
[Round "-"]
[White "therealab0ne"]
[Black "luckywookie"]
[Result "1-0"]
[WhiteElo "717"]
[BlackElo "756"]
[TimeControl "300"]
[EndTime "17:55:16 PDT"]
[Termination "therealab0ne won by checkmate"]

1. e4 {[%clk 0:04:58.2]} 1... c6 {[%clk 0:04:58.1]} 2. d4 {[%clk 0:04:56.4]}
2... d5 {[%clk 0:04:56.7]} 3. f3 {[%clk 0:04:55.9]} 3... dxe4 {[%clk 0:04:54.9]}
4. fxe4 {[%clk 0:04:55.2]} 4... e6 {[%clk 0:04:52.6]} 5. Nf3 {[%clk 0:04:50.8]}
5... c5 {[%clk 0:04:39.1]} 6. Bb5+ {[%clk 0:04:40.2]} 6... Nc6 {[%clk
0:04:37.5]} 7. O-O {[%clk 0:04:26.4]} 7... a6 {[%clk 0:04:34.4]} 8. Ba4 {[%clk
0:04:24.8]} 8... b5 {[%clk 0:04:32.5]} 9. Bg5 {[%clk 0:04:13.3]} 9... Nf6 {[%clk
0:04:28.8]} 10. Bxf6 {[%clk 0:04:11.4]} 10... gxf6 {[%clk 0:04:27]} 11. dxc5
{[%clk 0:04:08]} 11... bxa4 {[%clk 0:04:25]} 12. Qxd8+ {[%clk 0:04:06]} 12...
Nxd8 {[%clk 0:04:24.1]} 13. Nc3 {[%clk 0:04:02.9]} 13... Nc6 {[%clk 0:04:23]}
14. Nxa4 {[%clk 0:03:40.5]} 14... Rb8 {[%clk 0:04:18]} 15. b3 {[%clk 0:03:36.1]}
15... Rb4 {[%clk 0:04:13.5]} 16. Nd2 {[%clk 0:03:22.2]} 16... e5 {[%clk
0:04:02.9]} 17. Nc4 {[%clk 0:03:19.4]} 17... Bg4 {[%clk 0:03:55.3]} 18. h3
{[%clk 0:02:54.8]} 18... Be6 {[%clk 0:03:32.9]} 19. Nd6+ {[%clk 0:02:45.3]}
19... Bxd6 {[%clk 0:03:30.8]} 20. cxd6 {[%clk 0:02:44.7]} 20... Kd7 {[%clk
0:03:24.6]} 21. Rad1 {[%clk 0:02:30.2]} 21... Rxe4 {[%clk 0:03:21.2]} 22. Nc5+
{[%clk 0:02:15.3]} 22... Ke8 {[%clk 0:03:15]} 23. Nxe4 {[%clk 0:02:04.8]} 23...
Nd4 {[%clk 0:03:13.7]} 24. Nxf6+ {[%clk 0:01:59.9]} 24... Kf8 {[%clk 0:03:04.4]}
25. c3 {[%clk 0:01:53.7]} 25... Ne2+ {[%clk 0:03:01]} 26. Kf2 {[%clk 0:01:51.6]}
26... Nf4 {[%clk 0:02:50.5]} 27. d7 {[%clk 0:01:45.8]} 27... Bxd7 {[%clk
0:02:47.8]} 28. Nxd7+ {[%clk 0:01:38.6]} 28... Ke7 {[%clk 0:02:45.6]} 29. c4
{[%clk 0:01:36.2]} 29... Ne6 {[%clk 0:02:42.5]} 30. c5 {[%clk 0:01:34.2]} 30...
Rd8 {[%clk 0:02:38.4]} 31. c6 {[%clk 0:01:30.4]} 31... Nc7 {[%clk 0:02:35.1]}
32. Nxe5 {[%clk 0:01:18.6]} 32... Rxd1 {[%clk 0:02:33.2]} 33. Rxd1 {[%clk
0:01:17.8]} 33... Ke6 {[%clk 0:02:32]} 34. Nxf7 {[%clk 0:00:55.3]} 34... Kxf7
{[%clk 0:02:30.7]} 35. Rd7+ {[%clk 0:00:53.8]} 35... Ke6 {[%clk 0:02:29.1]} 36.
Rxc7 {[%clk 0:00:53.1]} 36... Kd6 {[%clk 0:02:27.3]} 37. Rxh7 {[%clk 0:00:43.5]}
37... Kxc6 {[%clk 0:02:26.1]} 38. Rf7 {[%clk 0:00:40.8]} 38... Kc5 {[%clk
0:02:23.6]} 39. g4 {[%clk 0:00:40.1]} 39... a5 {[%clk 0:02:22.9]} 40. g5 {[%clk
0:00:39.6]} 40... Kb4 {[%clk 0:02:22.2]} 41. g6 {[%clk 0:00:38.3]} 41... Ka3
{[%clk 0:02:20.4]} 42. g7 {[%clk 0:00:37.9]} 42... Kxa2 {[%clk 0:02:19.8]} 43.
g8=Q {[%clk 0:00:37.1]} 43... Kb2 {[%clk 0:02:19.1]} 44. Qg7+ {[%clk 0:00:35.4]}
44... Kxb3 {[%clk 0:02:18.1]} 45. Qg4 {[%clk 0:00:29.9]} 45... a4 {[%clk
0:02:16.8]} 46. Ke3 {[%clk 0:00:19.6]} 46... a3 {[%clk 0:02:16]} 47. Kd4 {[%clk
0:00:17.8]} 47... a2 {[%clk 0:02:15]} 48. Rf3+ {[%clk 0:00:15.9]} 48... Kc2
{[%clk 0:02:09.6]} 49. Qg2+ {[%clk 0:00:14.4]} 49... Kd1 {[%clk 0:02:05.5]} 50.
Rf1# {[%clk 0:00:13.2]} 1-0

[Event "Live Chess"]
[Site "Chess.com"]
[Date "2023.05.21"]
[Round "-"]
[White "Hussamalhaidar"]
[Black "Tilbs_12"]
[Result "0-1"]
[WhiteElo "1091"]
[BlackElo "1555"]
[TimeControl "300"]
[EndTime "17:55:34 PDT"]
[Termination "Tilbs_12 won by resignation"]

1. b3 {[%clk 0:04:55.8]} 1... e5 {[%clk 0:04:57.1]} 2. Bb2 {[%clk 0:04:54.9]}
2... Nc6 {[%clk 0:04:56.2]} 3. e3 {[%clk 0:04:53]} 3... a6 {[%clk 0:04:52.7]} 4.
d4 {[%clk 0:04:49.9]} 4... exd4 {[%clk 0:04:43.6]} 5. exd4 {[%clk 0:04:46.8]}
5... d5 {[%clk 0:04:43.2]} 6. c4 {[%clk 0:04:41.2]} 6... Nf6 {[%clk 0:04:39.3]}
7. cxd5 {[%clk 0:04:37.4]} 7... Nxd5 {[%clk 0:04:36.4]} 8. Bc4 {[%clk
0:04:36.7]} 8... Be6 {[%clk 0:04:31.6]} 9. Qe2 {[%clk 0:04:33.7]} 9... Be7
{[%clk 0:04:28.3]} 10. Nc3 {[%clk 0:04:23]} 10... Bb4 {[%clk 0:04:04]} 11. Bxd5
{[%clk 0:04:10.8]} 11... Bxc3+ {[%clk 0:04:00.7]} 12. Bxc3 {[%clk 0:04:06.3]}
12... Qxd5 {[%clk 0:04:00.3]} 13. Nf3 {[%clk 0:03:57.8]} 13... O-O {[%clk
0:03:54]} 14. O-O-O {[%clk 0:03:55]} 14... Rae8 {[%clk 0:03:48]} 15. Ne5 {[%clk
0:03:53.5]} 15... Nxe5 {[%clk 0:03:24.7]} 16. dxe5 {[%clk 0:03:49.1]} 16... Qc6
{[%clk 0:03:12.9]} 17. Kb2 {[%clk 0:03:41.3]} 17... Rd8 {[%clk 0:02:56.9]} 18.
f4 {[%clk 0:03:35.9]} 18... Bd5 {[%clk 0:02:43]} 19. h4 {[%clk 0:03:16.4]} 19...
Bxg2 {[%clk 0:02:39.6]} 20. Rhg1 {[%clk 0:03:03.8]} 20... Bf3 {[%clk 0:02:38.6]}
21. e6 {[%clk 0:02:38.6]} 21... Bxe2 {[%clk 0:02:13.3]} 22. Rxg7+ {[%clk
0:02:24.7]} 22... Kh8 {[%clk 0:02:11.2]} 23. Rxf7+ {[%clk 0:01:52.6]} 23... Kg8
{[%clk 0:02:05.7]} 24. Rg7+ {[%clk 0:01:46.8]} 24... Kh8 {[%clk 0:02:04.5]} 25.
Rxc7+ {[%clk 0:01:36]} 25... Qxc3+ {[%clk 0:02:00]} 26. Rxc3 {[%clk 0:01:33.4]}
26... Rxd1 {[%clk 0:01:58.4]} 27. e7 {[%clk 0:01:22.2]} 27... Re8 {[%clk
0:01:50.8]} 28. Rc8 {[%clk 0:01:18.6]} 28... Rxc8 {[%clk 0:01:49]} 0-1

[Event "Live Chess"]
[Site "Chess.com"]
[Date "2023.05.21"]
[Round "-"]
[White "CeladonFish"]
[Black "Doge_Dandolo"]
[Result "0-1"]
[WhiteElo "1079"]
[BlackElo "1930"]
[TimeControl "300"]
[EndTime "17:55:35 PDT"]
[Termination "Doge_Dandolo won by resignation"]

1. d4 {[%clk 0:04:57.8]} 1... d5 {[%clk 0:04:56.6]} 2. c4 {[%clk 0:04:56.9]}
2... c6 {[%clk 0:04:48.1]} 3. Nc3 {[%clk 0:04:54.8]} 3... Nf6 {[%clk 0:04:44.9]}
4. Bf4 {[%clk 0:04:52.8]} 4... a6 {[%clk 0:04:40.9]} 5. Nf3 {[%clk 0:04:49.7]}
5... Bf5 {[%clk 0:04:39.3]} 6. e3 {[%clk 0:04:47.4]} 6... e6 {[%clk 0:04:38.4]}
7. a3 {[%clk 0:04:42.5]} 7... Be7 {[%clk 0:04:36.3]} 8. b4 {[%clk 0:04:38.7]}
8... O-O {[%clk 0:04:34.8]} 9. cxd5 {[%clk 0:04:36.3]} 9... cxd5 {[%clk
0:04:32]} 10. a4 {[%clk 0:04:35.8]} 10... Nc6 {[%clk 0:04:30.9]} 11. b5 {[%clk
0:04:34.4]} 11... axb5 {[%clk 0:04:29]} 12. Nxb5 {[%clk 0:04:31.6]} 12... Bb4+
{[%clk 0:04:24]} 13. Ke2 {[%clk 0:04:28.5]} 13... Ne4 {[%clk 0:04:21.3]} 14. Nc7
{[%clk 0:04:25]} 14... Nc3+ {[%clk 0:04:18]} 15. Kd2 {[%clk 0:04:22.4]} 15...
Nxd1+ {[%clk 0:04:12.3]} 0-1

[Event "Live Chess"]
[Site "Chess.com"]
[Date "2023.05.21"]
[Round "-"]
[White "Olisingapore"]
[Black "ThatGuyNamedJeff"]
[Result "1-0"]
[WhiteElo "1809"]
[BlackElo "1572"]
[TimeControl "300"]
[EndTime "17:55:56 PDT"]
[Termination "Olisingapore won by resignation"]

1. d4 {[%clk 0:04:59.7]} 1... Nf6 {[%clk 0:04:58.8]} 2. c4 {[%clk 0:04:59]} 2...
g6 {[%clk 0:04:57.1]} 3. g3 {[%clk 0:04:58.4]} 3... d5 {[%clk 0:04:54.8]} 4. Bg2
{[%clk 0:04:58.3]} 4... Bg7 {[%clk 0:04:51.6]} 5. Nf3 {[%clk 0:04:57.1]} 5... c5
{[%clk 0:04:47.3]} 6. O-O {[%clk 0:04:55.7]} 6... O-O {[%clk 0:04:44.9]} 7. Nc3
{[%clk 0:04:54.2]} 7... dxc4 {[%clk 0:04:40]} 8. dxc5 {[%clk 0:04:52.6]} 8...
Qa5 {[%clk 0:04:26.9]} 9. Ne5 {[%clk 0:04:32.5]} 9... Qxc5 {[%clk 0:04:20.4]}
10. Nf3 {[%clk 0:04:14.2]} 10... b5 {[%clk 0:03:59.9]} 11. Nd2 {[%clk 0:04:04]}
11... Nc6 {[%clk 0:03:56.8]} 12. Nce4 {[%clk 0:03:59.7]} 12... Nxe4 {[%clk
0:03:52.4]} 13. Nxe4 {[%clk 0:03:56.6]} 13... Qb6 {[%clk 0:03:37.8]} 14. Be3
{[%clk 0:03:55.6]} 14... Qc7 {[%clk 0:03:26.2]} 15. Bf4 {[%clk 0:03:47.6]} 15...
e5 {[%clk 0:03:09.2]} 16. Be3 {[%clk 0:03:43.7]} 16... Bb7 {[%clk 0:03:06.8]}
17. Nc5 {[%clk 0:03:41]} 17... a6 {[%clk 0:02:34.7]} 18. Qd7 {[%clk 0:03:35.2]}
18... Qxd7 {[%clk 0:02:29.1]} 19. Nxd7 {[%clk 0:03:35.1]} 19... Rfc8 {[%clk
0:01:53.9]} 20. Nb6 {[%clk 0:03:29.7]} 20... Rab8 {[%clk 0:01:51]} 21. Nxc8
{[%clk 0:03:28]} 21... Rxc8 {[%clk 0:01:50.5]} 22. Rfd1 {[%clk 0:03:18.1]} 22...
Rc7 {[%clk 0:01:47.3]} 23. Bb6 {[%clk 0:03:16.1]} 23... Re7 {[%clk 0:01:43.5]}
24. Bxc6 {[%clk 0:03:11.9]} 24... Bxc6 {[%clk 0:01:42.4]} 25. Bc5 {[%clk
0:03:06.8]} 25... Rd7 {[%clk 0:01:25]} 26. Rxd7 {[%clk 0:03:04.8]} 26... Bxd7
{[%clk 0:01:23.8]} 27. Rd1 {[%clk 0:03:03.7]} 1-0

[Event "Live Chess"]
[Site "Chess.com"]
[Date "2023.05.21"]
[Round "-"]
[White "gmnorfolk"]
[Black "manthanit"]
[Result "1-0"]
[WhiteElo "2126"]
[BlackElo "1047"]
[TimeControl "300"]
[EndTime "17:55:57 PDT"]
[Termination "gmnorfolk won by checkmate"]

1. d4 {[%clk 0:04:58.1]} 1... e6 {[%clk 0:04:57.8]} 2. c4 {[%clk 0:04:57.1]}
2... d5 {[%clk 0:04:57.1]} 3. Nc3 {[%clk 0:04:55.2]} 3... Bb4 {[%clk 0:04:51.7]}
4. a3 {[%clk 0:04:51.1]} 4... Bxc3+ {[%clk 0:04:51]} 5. bxc3 {[%clk 0:04:51]}
5... dxc4 {[%clk 0:04:50.1]} 6. e4 {[%clk 0:04:49.9]} 6... Nf6 {[%clk
0:04:49.1]} 7. e5 {[%clk 0:04:47]} 7... Nd5 {[%clk 0:04:48.1]} 8. Qc2 {[%clk
0:04:43.5]} 8... b6 {[%clk 0:04:42.6]} 9. Bxc4 {[%clk 0:04:41]} 9... Bb7 {[%clk
0:04:41.1]} 10. Nf3 {[%clk 0:04:39.5]} 10... c5 {[%clk 0:04:34.3]} 11. O-O
{[%clk 0:04:36.8]} 11... O-O {[%clk 0:04:30.6]} 12. dxc5 {[%clk 0:04:34.6]}
12... bxc5 {[%clk 0:04:28.5]} 13. Rb1 {[%clk 0:04:34.1]} 13... Ba6 {[%clk
0:04:22]} 14. Rxb8 {[%clk 0:04:22]} 14... Rxb8 {[%clk 0:04:19.1]} 15. Bxa6
{[%clk 0:04:20.9]} 15... f6 {[%clk 0:03:54.2]} 16. exf6 {[%clk 0:04:16.1]} 16...
Nxf6 {[%clk 0:03:53.1]} 17. Bc4 {[%clk 0:04:13.8]} 17... Rb6 {[%clk 0:03:44.8]}
18. Ng5 {[%clk 0:04:11.5]} 18... Kh8 {[%clk 0:03:23.5]} 19. Nxe6 {[%clk
0:04:07.4]} 19... Rxe6 {[%clk 0:03:23]} 20. Bxe6 {[%clk 0:04:06.4]} 20... Qd6
{[%clk 0:03:18.5]} 21. Bh3 {[%clk 0:04:00.8]} 21... Re8 {[%clk 0:03:06.4]} 22.
Be3 {[%clk 0:03:57.2]} 22... h6 {[%clk 0:02:45]} 23. c4 {[%clk 0:03:52.4]} 23...
Rd8 {[%clk 0:02:27.4]} 24. Qg6 {[%clk 0:03:50.2]} 24... Qd1 {[%clk 0:02:19.7]}
25. g3 {[%clk 0:03:45.4]} 25... Qh5 {[%clk 0:01:58.9]} 26. Qxh5 {[%clk
0:03:42.6]} 26... Nxh5 {[%clk 0:01:57.9]} 27. Bxc5 {[%clk 0:03:40.4]} 27... Nf6
{[%clk 0:01:56.2]} 28. Bxa7 {[%clk 0:03:35.5]} 28... Ne4 {[%clk 0:01:55.1]} 29.
Be3 {[%clk 0:03:32.6]} 29... Nd6 {[%clk 0:01:46.3]} 30. c5 {[%clk 0:03:30.4]}
30... Nc4 {[%clk 0:01:38.8]} 31. c6 {[%clk 0:03:29.2]} 31... Nxe3 {[%clk
0:01:27.6]} 32. fxe3 {[%clk 0:03:28.2]} 32... Rd3 {[%clk 0:01:24.5]} 33. c7
{[%clk 0:03:26.3]} 33... Rxe3 {[%clk 0:01:22.8]} 34. c8=Q+ {[%clk 0:03:24.7]}
34... Kh7 {[%clk 0:01:22]} 35. Bf5+ {[%clk 0:03:22.1]} 35... g6 {[%clk
0:01:21.5]} 36. Bxg6+ {[%clk 0:03:18.3]} 36... Kxg6 {[%clk 0:01:20.3]} 37. Qf5+
{[%clk 0:03:17]} 37... Kg7 {[%clk 0:01:18.8]} 38. Qf6+ {[%clk 0:03:14.7]} 38...
Kg8 {[%clk 0:01:15.7]} 39. Qg6+ {[%clk 0:03:12.8]} 39... Kh8 {[%clk 0:01:13]}
40. Rf8# {[%clk 0:03:12]} 1-0

[Event "Live Chess"]
[Site "Chess.com"]
[Date "2023.05.21"]
[Round "-"]
[White "KeithArkell"]
[Black "garyjc"]
[Result "1-0"]
[WhiteElo "2605"]
[BlackElo "1036"]
[TimeControl "300"]
[EndTime "17:56:02 PDT"]
[Termination "KeithArkell won by resignation"]

1. d4 {[%clk 0:04:58.3]} 1... Nf6 {[%clk 0:04:52.8]} 2. Nf3 {[%clk 0:04:57.6]}
2... g6 {[%clk 0:04:50.7]} 3. c4 {[%clk 0:04:56.8]} 3... Bg7 {[%clk 0:04:49.1]}
4. Nc3 {[%clk 0:04:56.1]} 4... O-O {[%clk 0:04:47.8]} 5. g3 {[%clk 0:04:55.6]}
5... c6 {[%clk 0:04:46.2]} 6. Bg2 {[%clk 0:04:53.7]} 6... Na6 {[%clk 0:04:04.7]}
7. O-O {[%clk 0:04:51]} 7... d6 {[%clk 0:03:28.4]} 8. e4 {[%clk 0:04:48.4]} 8...
e5 {[%clk 0:03:23.1]} 9. dxe5 {[%clk 0:04:46.7]} 9... dxe5 {[%clk 0:03:21.7]}
10. Qxd8 {[%clk 0:04:44.9]} 10... Rxd8 {[%clk 0:03:18.9]} 11. Nxe5 {[%clk
0:04:43.8]} 11... Nc5 {[%clk 0:03:09.7]} 12. Be3 {[%clk 0:04:37]} 12... b6
{[%clk 0:03:00.6]} 13. Nxc6 {[%clk 0:04:35.6]} 13... Re8 {[%clk 0:02:47]} 14. e5
{[%clk 0:04:34.3]} 14... Nfd7 {[%clk 0:02:41.6]} 15. Ne7+ {[%clk 0:04:28.7]}
15... Kh8 {[%clk 0:02:27.8]} 16. Bxa8 {[%clk 0:04:28.6]} 16... Rxe7 {[%clk
0:02:24.9]} 17. f4 {[%clk 0:04:26.1]} 17... Nd3 {[%clk 0:02:14.1]} 18. Nd5
{[%clk 0:04:24.4]} 18... Re8 {[%clk 0:02:09.2]} 19. b3 {[%clk 0:04:21.5]} 19...
Ba6 {[%clk 0:01:56.8]} 20. Bc6 {[%clk 0:04:19.4]} 20... Rd8 {[%clk 0:01:43.2]}
21. Rad1 {[%clk 0:04:17.8]} 21... Nb2 {[%clk 0:01:34.9]} 22. Rd2 {[%clk
0:04:15.8]} 22... Nb8 {[%clk 0:01:00.4]} 23. Bb5 {[%clk 0:04:14.2]} 23... Bxb5
{[%clk 0:00:52.5]} 24. cxb5 {[%clk 0:04:14.1]} 24... a6 {[%clk 0:00:27.3]} 25.
Bxb6 {[%clk 0:04:05.9]} 25... Rd7 {[%clk 0:00:22.7]} 26. Rb1 {[%clk 0:04:00.5]}
26... axb5 {[%clk 0:00:15.9]} 27. Rbxb2 {[%clk 0:03:59.6]} 1-0

[Event "Live Chess"]
[Site "Chess.com"]
[Date "2023.05.21"]
[Round "-"]
[White "Baturin_Yevgeniy"]
[Black "ShanthamGrarks"]
[Result "0-1"]
[WhiteElo "1806"]
[BlackElo "2020"]
[TimeControl "300"]
[EndTime "17:56:03 PDT"]
[Termination "ShanthamGrarks won on time"]

1. d4 {[%clk 0:04:53.2]} 1... e6 {[%clk 0:04:56.9]} 2. Nf3 {[%clk 0:04:49.1]}
2... f5 {[%clk 0:04:55.3]} 3. c4 {[%clk 0:04:34.5]} 3... c6 {[%clk 0:04:52.9]}
4. Nc3 {[%clk 0:04:29.1]} 4... Nf6 {[%clk 0:04:49.8]} 5. Bg5 {[%clk 0:04:24.9]}
5... Be7 {[%clk 0:04:45.9]} 6. Qc2 {[%clk 0:04:07.5]} 6... O-O {[%clk
0:04:43.5]} 7. Bxf6 {[%clk 0:03:53.5]} 7... Bxf6 {[%clk 0:04:41.5]} 8. e4 {[%clk
0:03:51.7]} 8... fxe4 {[%clk 0:04:40.6]} 9. Nxe4 {[%clk 0:03:49.1]} 9... d5
{[%clk 0:04:38.7]} 10. Nxf6+ {[%clk 0:03:10.3]} 10... Qxf6 {[%clk 0:04:35.7]}
11. Bd3 {[%clk 0:03:07.7]} 11... g6 {[%clk 0:04:31.7]} 12. h4 {[%clk 0:03:00.4]}
12... Na6 {[%clk 0:04:21.6]} 13. a3 {[%clk 0:02:18.5]} 13... Nc7 {[%clk
0:04:19.7]} 14. h5 {[%clk 0:02:16.3]} 14... g5 {[%clk 0:04:09.2]} 15. Bxh7+
{[%clk 0:02:11.1]} 15... Kh8 {[%clk 0:04:08.7]} 16. Ne5 {[%clk 0:02:05]} 16...
dxc4 {[%clk 0:03:47.9]} 17. Ng6+ {[%clk 0:01:47.3]} 17... Kxh7 {[%clk 0:03:46]}
18. Nxf8+ {[%clk 0:01:44.2]} 18... Kg7 {[%clk 0:03:44.8]} 19. Qg6+ {[%clk
0:01:22.9]} 19... Qxg6 {[%clk 0:03:42.6]} 20. Nxg6 {[%clk 0:01:22.6]} 20... Nb5
{[%clk 0:03:38.3]} 21. O-O-O {[%clk 0:01:19]} 21... Bd7 {[%clk 0:03:35.6]} 22.
Ne5 {[%clk 0:01:17.3]} 22... Be8 {[%clk 0:03:32.8]} 23. h6+ {[%clk 0:01:15.3]}
23... Kh7 {[%clk 0:03:31.8]} 24. Nxc4 {[%clk 0:01:10.4]} 24... Bg6 {[%clk
0:03:27.9]} 25. Ne5 {[%clk 0:01:01.7]} 25... Bf5 {[%clk 0:03:23.4]} 26. g4
{[%clk 0:00:59.5]} 26... Be4 {[%clk 0:03:20.3]} 27. f3 {[%clk 0:00:58.5]} 27...
Bd5 {[%clk 0:03:17.6]} 28. Kc2 {[%clk 0:00:55.2]} 28... Rf8 {[%clk 0:03:12.8]}
29. Rd3 {[%clk 0:00:53.2]} 29... Rf4 {[%clk 0:03:10.8]} 30. Rh5 {[%clk
0:00:50.1]} 30... Nxd4+ {[%clk 0:03:07.5]} 31. Rxd4 {[%clk 0:00:36.8]} 31...
Rxd4 {[%clk 0:03:05.6]} 32. Nf7 {[%clk 0:00:36.3]} 32... Rf4 {[%clk 0:02:53.3]}
33. Nxg5+ {[%clk 0:00:34.7]} 33... Kh8 {[%clk 0:02:51.5]} 34. h7 {[%clk
0:00:32.8]} 34... Bxf3 {[%clk 0:02:41.8]} 35. Nxe6 {[%clk 0:00:29.5]} 35... Be4+
{[%clk 0:02:12.7]} 36. Kc3 {[%clk 0:00:24]} 36... Rxg4 {[%clk 0:02:06]} 37. Nd8
{[%clk 0:00:14.6]} 37... Bxh7 {[%clk 0:02:02.8]} 38. Nf7+ {[%clk 0:00:12.7]}
38... Kg7 {[%clk 0:02:02.4]} 39. Ng5 {[%clk 0:00:09.9]} 39... Bg6 {[%clk
0:01:57.6]} 40. Ne6+ {[%clk 0:00:06.8]} 40... Kf6 {[%clk 0:01:55.2]} 0-1

[Event "Live Chess"]
[Site "Chess.com"]
[Date "2023.05.21"]
[Round "-"]
[White "LiamBellwood"]
[Black "alanmike75"]
[Result "1/2-1/2"]
[WhiteElo "2038"]
[BlackElo "1566"]
[TimeControl "300"]
[EndTime "17:56:06 PDT"]
[Termination "Game drawn by repetition"]

1. d4 {[%clk 0:04:58.8]} 1... d5 {[%clk 0:04:58.7]} 2. Nc3 {[%clk 0:04:56.2]}
2... e6 {[%clk 0:04:57.1]} 3. Bf4 {[%clk 0:04:54.8]} 3... Bd6 {[%clk 0:04:53.9]}
4. e3 {[%clk 0:04:52.8]} 4... Nf6 {[%clk 0:04:51.8]} 5. Nf3 {[%clk 0:04:50]}
5... b6 {[%clk 0:04:49]} 6. Bd3 {[%clk 0:04:46.1]} 6... Bb7 {[%clk 0:04:47.9]}
7. Bxd6 {[%clk 0:04:44.5]} 7... cxd6 {[%clk 0:04:44.3]} 8. a4 {[%clk 0:04:43.4]}
8... O-O {[%clk 0:04:41.8]} 9. O-O {[%clk 0:04:41.8]} 9... Ne4 {[%clk
0:04:40.5]} 10. Nd2 {[%clk 0:04:38.7]} 10... Nxc3 {[%clk 0:04:37.8]} 11. bxc3
{[%clk 0:04:38.6]} 11... Nc6 {[%clk 0:04:32.9]} 12. c4 {[%clk 0:04:36.5]} 12...
Nb4 {[%clk 0:04:28.3]} 13. Be2 {[%clk 0:04:28.8]} 13... Rc8 {[%clk 0:04:17.7]}
14. c3 {[%clk 0:04:23.8]} 14... Nc6 {[%clk 0:04:05.9]} 15. cxd5 {[%clk
0:04:22.9]} 15... exd5 {[%clk 0:04:04.7]} 16. Bf3 {[%clk 0:04:19.5]} 16... Ne7
{[%clk 0:04:02.8]} 17. Qb3 {[%clk 0:04:14.3]} 17... Qc7 {[%clk 0:03:59.2]} 18.
Rac1 {[%clk 0:04:12.5]} 18... Ba6 {[%clk 0:03:53.7]} 19. Rfd1 {[%clk 0:03:59.9]}
19... Bc4 {[%clk 0:03:52.2]} 20. Qb4 {[%clk 0:03:42.8]} 20... Qd7 {[%clk
0:03:46]} 21. Nb1 {[%clk 0:03:27.5]} 21... Rc7 {[%clk 0:03:43.3]} 22. Na3 {[%clk
0:03:26.3]} 22... Rfc8 {[%clk 0:03:15.4]} 23. Rd2 {[%clk 0:03:21.5]} 23... Rc6
{[%clk 0:02:56.2]} 24. Be2 {[%clk 0:02:43.4]} 24... Bxe2 {[%clk 0:02:32.2]} 25.
Rxe2 {[%clk 0:02:43.3]} 25... R6c7 {[%clk 0:02:16.5]} 26. Nb5 {[%clk 0:02:41.7]}
26... Rc6 {[%clk 0:02:06.1]} 27. Na3 {[%clk 0:02:19.7]} 27... g6 {[%clk
0:02:01.8]} 28. Rec2 {[%clk 0:02:18.7]} 28... R6c7 {[%clk 0:01:54.4]} 29. Nb5
{[%clk 0:02:13.9]} 29... Rc6 {[%clk 0:01:52.5]} 30. Na3 {[%clk 0:02:13.6]} 30...
R6c7 {[%clk 0:01:50.7]} 31. c4 {[%clk 0:02:13]} 31... dxc4 {[%clk 0:01:47.6]}
32. Rxc4 {[%clk 0:02:08.5]} 32... Nd5 {[%clk 0:01:37.8]} 33. Qb3 {[%clk
0:01:57]} 33... Rxc4 {[%clk 0:01:28]} 34. Rxc4 {[%clk 0:01:54.2]} 34... Rxc4
{[%clk 0:01:23.2]} 35. Qxc4 {[%clk 0:01:38.4]} 35... Qc7 {[%clk 0:01:17.4]} 36.
e4 {[%clk 0:01:27.6]} 36... Qxc4 {[%clk 0:01:13.1]} 37. Nxc4 {[%clk 0:01:27.5]}
37... Nc3 {[%clk 0:01:05.9]} 38. a5 {[%clk 0:01:17.9]} 38... bxa5 {[%clk
0:01:00.8]} 39. Nxa5 {[%clk 0:01:15.9]} 39... Nxe4 {[%clk 0:00:58.3]} 40. f3
{[%clk 0:01:09.7]} 40... Nc3 {[%clk 0:00:53.6]} 41. Kf2 {[%clk 0:01:08.7]} 41...
Kf8 {[%clk 0:00:47.6]} 42. Ke3 {[%clk 0:01:06.7]} 42... Ke7 {[%clk 0:00:46.4]}
43. Nc6+ {[%clk 0:01:05.1]} 43... Ke6 {[%clk 0:00:38.1]} 44. Nxa7 {[%clk
0:01:02.4]} 44... Kd5 {[%clk 0:00:36.8]} 45. Nc8 {[%clk 0:00:56.6]} 45... Nd1+
{[%clk 0:00:32.4]} 46. Kd3 {[%clk 0:00:50.2]} 46... Nb2+ {[%clk 0:00:29.6]} 47.
Kc3 {[%clk 0:00:48.2]} 47... Na4+ {[%clk 0:00:26.9]} 48. Kd3 {[%clk 0:00:45.5]}
48... Nb2+ {[%clk 0:00:25.5]} 49. Ke3 {[%clk 0:00:35.3]} 49... Nc4+ {[%clk
0:00:23.5]} 50. Kd3 {[%clk 0:00:32]} 50... Nb2+ {[%clk 0:00:22.3]} 1/2-1/2

[Event "Live Chess"]
[Site "Chess.com"]
[Date "2023.05.21"]
[Round "-"]
[White "Missedidea"]
[Black "domrobson"]
[Result "1-0"]
[WhiteElo "1843"]
[BlackElo "1733"]
[TimeControl "300"]
[EndTime "17:57:35 PDT"]
[Termination "Missedidea won by resignation"]

1. d4 {[%clk 0:04:58.5]} 1... Nf6 {[%clk 0:04:58.8]} 2. c4 {[%clk 0:04:56.9]}
2... e6 {[%clk 0:04:58]} 3. Nc3 {[%clk 0:04:55.9]} 3... d5 {[%clk 0:04:54.5]} 4.
Bg5 {[%clk 0:04:53.9]} 4... c6 {[%clk 0:04:53.8]} 5. e3 {[%clk 0:04:52.2]} 5...
Nbd7 {[%clk 0:04:53.2]} 6. Nf3 {[%clk 0:04:51.2]} 6... Qa5 {[%clk 0:04:52.7]} 7.
Nd2 {[%clk 0:04:46.6]} 7... dxc4 {[%clk 0:04:50.3]} 8. Bxf6 {[%clk 0:04:45.3]}
8... Nxf6 {[%clk 0:04:49.2]} 9. Nxc4 {[%clk 0:04:44.2]} 9... Qd8 {[%clk
0:04:46]} 10. Qc2 {[%clk 0:04:38.7]} 10... Bd6 {[%clk 0:04:42.2]} 11. Bd3 {[%clk
0:04:35.3]} 11... Bb8 {[%clk 0:04:40.3]} 12. h3 {[%clk 0:04:21.5]} 12... h5
{[%clk 0:04:38]} 13. O-O-O {[%clk 0:04:07.9]} 13... Bd7 {[%clk 0:04:28.6]} 14.
g4 {[%clk 0:04:04.1]} 14... hxg4 {[%clk 0:04:25.4]} 15. hxg4 {[%clk 0:04:03.2]}
15... Rxh1 {[%clk 0:04:22.7]} 16. Rxh1 {[%clk 0:04:01.5]} 16... Ke7 {[%clk
0:04:19.6]} 17. g5 {[%clk 0:03:57.5]} 17... Nd5 {[%clk 0:04:17.5]} 18. a3 {[%clk
0:03:47.5]} 18... b5 {[%clk 0:04:14.3]} 19. Ne5 {[%clk 0:03:35.3]} 19... Bxe5
{[%clk 0:04:12.7]} 20. dxe5 {[%clk 0:03:33.5]} 20... Qc7 {[%clk 0:04:10.2]} 21.
Nxd5+ {[%clk 0:03:24.9]} 21... exd5 {[%clk 0:04:08.7]} 22. Qc5+ {[%clk
0:03:21.3]} 22... Ke6 {[%clk 0:04:04]} 23. f4 {[%clk 0:03:17.9]} 23... g6 {[%clk
0:03:55.7]} 24. Be2 {[%clk 0:03:14.4]} 24... f5 {[%clk 0:03:48.1]} 25. Rh6
{[%clk 0:03:10.5]} 25... Be8 {[%clk 0:03:43.5]} 26. Bh5 {[%clk 0:03:05.8]} 1-0

[Event "Live Chess"]
[Site "Chess.com"]
[Date "2023.05.21"]
[Round "-"]
[White "LutherSullivan"]
[Black "EdenHazard8"]
[Result "1-0"]
[WhiteElo "2125"]
[BlackElo "1983"]
[TimeControl "300"]
[EndTime "17:57:42 PDT"]
[Termination "LutherSullivan won on time"]

1. e4 {[%clk 0:04:56.7]} 1... c5 {[%clk 0:04:58]} 2. Nf3 {[%clk 0:04:55]} 2...
Nc6 {[%clk 0:04:56.8]} 3. c3 {[%clk 0:04:51.6]} 3... g6 {[%clk 0:04:54.1]} 4. d4
{[%clk 0:04:50.5]} 4... cxd4 {[%clk 0:04:54]} 5. cxd4 {[%clk 0:04:50.2]} 5... d5
{[%clk 0:04:53.2]} 6. e5 {[%clk 0:04:48.9]} 6... Bg4 {[%clk 0:04:50.9]} 7. Nbd2
{[%clk 0:04:46.7]} 7... e6 {[%clk 0:04:49.3]} 8. h3 {[%clk 0:04:43]} 8... Bxf3
{[%clk 0:04:44]} 9. Nxf3 {[%clk 0:04:41.4]} 9... Nge7 {[%clk 0:04:42.9]} 10. Bd3
{[%clk 0:04:30.8]} 10... Nf5 {[%clk 0:04:39.2]} 11. Qa4 {[%clk 0:04:05.3]} 11...
Bb4+ {[%clk 0:04:31]} 12. Bd2 {[%clk 0:03:58.7]} 12... Bxd2+ {[%clk 0:04:27.5]}
13. Kxd2 {[%clk 0:03:57.7]} 13... Qb6 {[%clk 0:04:22.4]} 14. Rac1 {[%clk
0:03:11.2]} 1-0